fUST/lending_fUST_20260201
["ID","MTS","AMOUNT","RATE_DAILY","PERIOD"]
[404163325,1769889668216,-300.0,0.00013972,2]
[404163326,1769889668246,-300.0,0.00013972,2]
[404163327,1769889668276,-300.0,0.00013972,2]
[404163328,1769889668306,-300.0,0.00013972,2]
[404163329,1769889668337,-300.0,0.00013972,2]
[404163330,1769889671308,-300.0,0.00013972,2]
[404163331,1769889671341,-300.0,0.00013972,2]
[404163332,1769889671370,-300.0,0.00013972,2]
[404163333,1769889671400,-300.0,0.00013972,2]
[404163334,1769889671430,-300.0,0.00013972,2]
[404163335,1769889671459,-300.0,0.00013972,2]
[404163336,1769889671485,-603.02799168,0.00014221,2]
[404163337,1769889671512,-1000.0,0.00014247,2]
[404163338,1769889671541,-600.0,0.0001425,2]
[404163339,1769889683975,1993.95401664,0.00014368,2]
[404163340,1769889684000,2911.68804571,0.00014368,2]
[404163341,1769889684635,-500.0,0.00014368,2]
[404163342,1769889684663,-500.0,0.00014368,2]
[404163343,1769889684694,-500.0,0.00014368,2]
[404163344,1769889684721,-500.0,0.00014368,2]
[404163345,1769889684749,-1500.0,0.00014795,2]
[404163346,1769889684778,-177.0,0.00015272,2]
[404163347,1769889684806,-796.48,0.00015342,2]
[404163348,1769889685004,-1053.05,0.00015342,2]
[404163349,1769889685032,-459.22058997,0.00015342,2]
[404163350,1769889722965,300.0,0.00015742,2]
[404163351,1769889726554,500.0,0.00013273,2]
[404163352,1769889726602,504.81393243,0.00013821,2]
[404163353,1769889726683,1826.52214447,0.00044268,119]
[404163354,1769889726956,320.39327364,0.00013273,2]
[404163355,1769889731729,1155.1973164,0.00014027,2]
[404163356,1769889783773,157.30542113,0.00014247,2]
[404163357,1769889783802,500.0,0.00013699,2]
[404163358,1769889784501,264.95517331,0.00013273,2]
[404163359,1769889787050,500.0,0.00013273,2]
[404163360,1769889787276,501.21229095,0.00013273,2]
[404163361,1769889787303,500.0,0.00013273,2]
[404163362,1769889787330,576.72437709,0.00013273,2]
[404163363,1769889787355,502.98054822,0.00013821,2]
[404163364,1769889787771,500.0,0.00013273,2]
[404163365,1769889787827,501.30398043,0.00013821,2]
[404163366,1769889788797,508.24952436,0.00013699,2]
[404163367,1769889845799,500.0,0.00013273,2]
[404163368,1769889845862,503.17437249,0.00013821,2]
[404163369,1769889907147,500.56709487,0.00013699,2]
[404163370,1769889907177,161.06413832,0.00013699,2]
[404163371,1769889907286,500.0,0.00013699,2]
[404163372,1769889907333,1000.0,0.00014247,2]
[404163373,1769889907381,500.0,0.00013273,2]
[404163374,1769889907407,175.70742984,0.00014795,2]
[404163375,1769889907434,1000.0,0.00013821,2]
[404163376,1769889907472,146.76564899,0.00014368,2]
[404163377,1769889907493,1353.23435101,0.00014368,2]
[404163378,1769889907530,1462.90869654,0.00014916,2]
[404163379,1769890028855,-500.0,0.00013273,2]
[404163380,1769890028883,-500.0,0.00013273,2]
[404163381,1769890028911,-1000.0,0.00013821,2]
[404163382,1769890028939,-1500.0,0.00014368,2]
[404163383,1769890028968,-1000.01,0.00014916,2]
[404163384,1769890035913,-999.99,0.00014916,2]
[404163385,1769890040130,-273.71697255,0.00015416,2]
[404163386,1769890097822,-26.28302745,0.00015416,2]
[404163387,1769890097854,-2607.98000005,0.00015464,2]
[404163388,1769890097885,-300.0,0.00015741,2]
[404163389,1769890097917,-300.0,0.00015741,2]
[404163390,1769890098035,-300.0,0.00015741,2]
[404163391,1769890098066,-300.0,0.00015742,2]
[404163392,1769890098097,-300.0,0.00015742,2]
[404163393,1769890098127,-300.0,0.00015742,2]
[404163394,1769890100043,-1200.0,0.00015742,2]
[404163395,1769890108031,-8622.44375349,0.00015743,2]
[404163396,1769890111088,-3726.91526151,0.00015743,2]
[404163397,1769890111127,-300.0,0.00016056,2]
[404163398,1769890111160,-300.0,0.00016056,2]
[404163399,1769890111195,-300.0,0.00016056,2]
[404163400,1769890111229,-300.0,0.00016056,2]
[404163401,1769890111342,-146.17947698,0.00016056,2]
[404163402,1769890143370,500.0,0.00013273,2]
[404163403,1769890143416,500.0,0.00013273,2]
[404163404,1769890143446,1000.0,0.00013821,2]
[404163405,1769890205132,6108.9215913,0.00015082,2]
[404163406,1769890206204,500.0,0.00013699,2]
[404163407,1769890208207,1000.0,0.00043478,20]
[404163533,1769890237010,-3274.01467555,0.00015638,2]
[404163534,1769890237020,-646.0,0.00015638,2]
[404163535,1769890237030,-2670.46450646,0.00015796,2]
[404163536,1769890237039,-300.0,0.00015955,2]
[404163537,1769890237049,-300.0,0.00016055,2]
[404163538,1769890237060,-300.0,0.00016055,2]
[404163539,1769890237073,-300.0,0.00016055,2]
[404163540,1769890237082,-300.0,0.00016055,2]
[404163541,1769890237092,-1200.0,0.00016055,2]
[404163542,1769890237101,-153.82052302,0.00016056,2]
[404163543,1769890237111,-300.0,0.00016056,2]
[404163544,1769890237121,-300.0,0.00016056,2]
[404163545,1769890237130,-300.0,0.00016056,2]
[404163546,1769890237140,-300.0,0.00016056,2]
[404163547,1769890237149,-300.0,0.00016056,2]
[404163548,1769890237159,-300.0,0.00016056,2]
[404163549,1769890237168,-300.0,0.00016056,2]
[404163550,1769890237178,-300.0,0.00016056,2]
[404163551,1769890237187,-300.0,0.00016056,2]
[404163552,1769890237197,-300.0,0.00016056,2]
[404163553,1769890237206,-386.1896276,0.00016153,2]
[404163554,1769890237216,-1299.596981,0.00016283,2]
[404163555,1769890237226,-503.4201334,0.00016438,2]
[404163556,1769890237236,-3927.83707305,0.00016523,2]
[404163557,1769890237247,-14359.1476,0.00016523,2]
[404163558,1769890237259,-7027.70357989,0.00016523,2]
[404163566,1769890238539,-6095.83265946,0.00016523,2]
[404163567,1769890238550,-600.0,0.0001685,2]
[404163568,1769890238561,-6108.9215913,0.00016988,2]
[404163569,1769890238571,-695.14132969,0.00017159,2]
[404163570,1769890238581,-500.0,0.00017214,2]
[404163571,1769890238591,-500.0,0.00017214,2]
[404163572,1769890238600,-314.73233706,0.00017214,2]
[404163573,1769890238610,-500.0,0.00017214,2]
[404163574,1769890238620,-500.0,0.00017214,2]
[404163575,1769890238629,-500.0,0.00017214,2]
[404163576,1769890238638,-500.0,0.00017214,2]
[404163577,1769890238647,-303.96147038,0.00017214,2]
[404163578,1769890238656,-500.0,0.00017214,2]
[404163579,1769890238666,-198.36717097,0.00017214,2]
[404163580,1769890238676,-500.0,0.00017214,2]
[404163581,1769890238685,-500.0,0.00017214,2]
[404163582,1769890238695,-500.0,0.00017214,2]
[404163583,1769890238704,-324.0,0.00017552,2]
[404163584,1769890238713,-474.0,0.00017641,2]
[404163585,1769890238722,-12349.359015,0.0001779,2]
[404163586,1769890238732,-477.86747994,0.00018002,2]
[404163587,1769890238741,-413.02152766,0.00018165,2]
[404163588,1769890238752,-1235.80680833,0.00018165,2]
[404163589,1769890238761,-1443.9966456,0.00018301,2]
[404163590,1769890238771,-720.0,0.00018535,2]
[404163591,1769890238780,-1237.626872,0.00018568,2]
[404163592,1769890238790,-6108.9215913,0.00018893,2]
[404163593,1769890238799,-924.439951,0.00018975,2]
[404163594,1769890238808,-924.439951,0.00019773,2]
[404163595,1769890238817,-12349.359015,0.00019838,2]
[404163596,1769890238827,-1588.3963101,0.00020126,2]
[404163597,1769890238837,-864.0,0.00020389,2]
[404163598,1769890238847,-924.439951,0.00020572,2]
[404163599,1769890238856,-250.0,0.00020663,2]
[404163600,1769890238865,-6108.9215913,0.00020799,2]
[404163601,1769890238875,-924.439951,0.00021371,2]
[404163602,1769890238883,-1732.7959747,0.00021793,2]
[404163603,1769890238893,-924.439951,0.0002217,2]
[404163604,1769890238906,-1000.0,0.00022428,10]
[404163605,1769890238916,-924.439951,0.00022969,2]
[404163606,1769890238925,-1000.0,0.00024671,10]
[404163607,1769890238935,-244.0,0.00024671,10]
[404163608,1769890238946,-323.82325691,0.000249,2]
[404163609,1769890238955,-501.65,0.000251,7]
[404163610,1769890238964,-1041.66666667,0.00025931,2]
[404163611,1769890238973,-160.0,0.00025931,2]
[404163612,1769890238984,-160.0,0.00025934,2]
[404163613,1769890238995,-1000.0,0.00027138,30]
[404163614,1769890239006,-492.0,0.00027138,30]
[404163615,1769890239015,-1237.626872,0.00027852,2]
[404163616,1769890239025,-150.0,0.00029577,7]
[404163617,1769890239034,-150.0,0.00029577,7]
[404163618,1769890239044,-150.0,0.00029577,7]
[404163619,1769890239054,-150.0,0.00029577,7]
[404163620,1769890239065,-150.0,0.00029577,7]
[404163621,1769890239075,-150.0,0.00029577,7]
[404163622,1769890239085,-150.0,0.00029577,7]
[404163623,1769890239095,-150.0,0.00029577,7]
[404163624,1769890239104,-278.23711361,0.00029714,7]
[404163625,1769890239114,-150.0,0.00029714,7]
[404163626,1769890239124,-150.0,0.00029714,7]
[404163627,1769890239134,-150.0,0.00029714,7]
[404163628,1769890239145,-150.0,0.00029714,7]
[404163629,1769890239154,-200.0,0.00029851,7]
[404163630,1769890239164,-200.0,0.00029851,7]
[404163631,1769890239173,-164.20582551,0.00029851,7]
[404163632,1769890239183,-200.0,0.00029851,7]
[404163633,1769890239192,-1000.0,0.00029852,30]
[404163634,1769890239202,-791.0,0.00029852,30]
[404163635,1769890239211,-200.0,0.000305,120]
[404163636,1769890239221,-150.0,0.00030726,60]
[404163637,1769890239230,-161.07785789,0.00031,120]
[404163638,1769890239240,-194.78728023,0.00031,120]
[404163639,1769890239249,-500.0,0.00031,7]
[404163640,1769890239258,-161.07785789,0.000319,120]
[404163641,1769890239268,-1000.0,0.00032837,30]
[404163642,1769890239279,-1000.0,0.00032837,30]
[404163643,1769890239288,-150.0,0.00032877,7]
[404163644,1769890239298,-150.0,0.00033014,7]
[404163645,1769890239307,-150.0,0.00033151,7]
[404163646,1769890239316,-735.43920289,0.000332,117]
[404163647,1769890239326,-201.0,0.00033288,7]
[404163648,1769890239336,-400.0,0.00034611,11]
[404163649,1769890239345,-508.3,0.00034611,8]
[404163650,1769890239355,-710.0,0.00034964,11]
[404163651,1769890239364,-167.73158668,0.00035514,7]
[404163652,1769890239373,-941.00953086,0.00035514,7]
[404163653,1769890239383,-207.9167621,0.00035872,15]
[404163654,1769890239392,-1000.0,0.0003612,30]
[404163655,1769890239402,-1000.0,0.0003612,30]
[404163656,1769890239413,-579.0,0.0003612,30]
[404163657,1769890239423,-173.571,0.00036299,44]
[404163658,1769890239432,-1000.0,0.00039732,60]
[404163659,1769890239442,-1000.0,0.00039732,60]
[404163660,1769890239455,-1000.0,0.00039732,60]
[404163661,1769890239467,-157.1,0.00041528,120]
[404163662,1769890239478,-157.1,0.00041528,120]
[404163663,1769890239490,-157.1,0.00041628,120]
[404163664,1769890239500,-157.1,0.00041728,120]
[404163665,1769890239510,-157.1,0.00041728,120]
[404163666,1769890239520,-157.1,0.00041828,120]
[404163667,1769890239530,-157.1,0.00042028,120]
[404163668,1769890239540,-157.1,0.00042128,120]
[404163669,1769890239550,-157.1,0.00042228,120]
[404163670,1769890239560,-157.1,0.00042328,120]
[404163671,1769890239569,-157.1,0.00042428,120]
[404163672,1769890239579,-157.1,0.00042528,120]
[404163673,1769890239588,-157.1,0.00042728,120]
[404163674,1769890239597,-157.1,0.00042828,120]
[404163675,1769890239606,-157.1,0.00042928,120]
[404163676,1769890239616,-157.1,0.00043028,120]
[404163677,1769890239625,-157.1,0.00043128,120]
[404163678,1769890239634,-157.1,0.00043228,120]
[404163679,1769890239645,-157.18,0.00043328,120]
[404163680,1769890239655,-4660.82692821,0.00043378,4]
[404163681,1769890239664,-201.93286099,0.00043434,120]
[404163682,1769890239675,-1141.66,0.00043468,10]
[404163683,1769890239685,-209.40437684,0.00043478,20]
[404163684,1769890239780,-217.15233878,0.00043478,20]
[404163685,1769890239790,-225.18697532,0.00043478,20]
[404163686,1769890239800,-233.51889341,0.00043478,20]
[404163687,1769890239811,-242.15909246,0.00043478,20]
[404163688,1769890239820,-251.11897888,0.00043478,20]
[404163689,1769890239829,-260.4103811,0.00043478,20]
[404163690,1769890239838,-270.0455652,0.00043478,20]
[404163691,1769890239847,-280.03725112,0.00043478,20]
[404163692,1769890239857,-290.39862941,0.00043478,20]
[404163693,1769890239867,-301.1433787,0.00043478,20]
[404163694,1769890239876,-393.0,0.00043478,120]
[404163695,1769890239887,-155.0,0.00043478,2]
[404163696,1769890239896,-8591.98,0.00043478,3]
[404163697,1769890239906,-8591.98,0.00043478,3]
[404163698,1769890239916,-8591.98,0.00043478,3]
[404163699,1769890239926,-8591.98,0.00043478,3]
[404163700,1769890239936,-8591.98,0.00043478,3]
[404163701,1769890239945,-8591.98,0.00043478,3]
[404163702,1769890239954,-8591.98,0.00043478,3]
[404163703,1769890239964,-8591.98,0.00043478,3]
[404163704,1769890239973,-8591.98,0.00043478,3]
[404163705,1769890239983,-8591.98,0.00043478,3]
[404163706,1769890239992,-8591.98,0.00043478,3]
[404163707,1769890240001,-8591.98,0.00043478,3]
[404163708,1769890240011,-8591.98,0.00043478,3]
[404163709,1769890240021,-8591.98,0.00043478,3]
[404163710,1769890240031,-8591.98,0.00043478,3]
[404163711,1769890240040,-8591.98,0.00043478,3]
[404163712,1769890240051,-8591.98,0.00043478,3]
[404163713,1769890240063,-8591.98,0.00043478,3]
[404163714,1769890240075,-8591.98,0.00043478,3]
[404163715,1769890240084,-8591.98,0.00043478,3]
[404163716,1769890240095,-8591.98,0.00043478,3]
[404163717,1769890240104,-8591.98,0.00043478,3]
[404163718,1769890240114,-8591.98,0.00043478,3]
[404163719,1769890240124,-8592.00817086,0.00043478,3]
[404163720,1769890240133,-500.0,0.00043478,7]
[404163721,1769890240144,-500.0,0.00043478,7]
[404163722,1769890240153,-500.0,0.00043478,7]
[404163723,1769890240163,-500.0,0.00043478,7]
[404163724,1769890240173,-500.0,0.00043478,7]
[404163725,1769890240183,-500.0,0.00043478,7]
[404163726,1769890240193,-502.60251895,0.00043478,7]
[404163727,1769890240202,-500.0,0.00043478,12]
[404163728,1769890240212,-500.0,0.00043478,12]
[404163730,1769890240221,-500.0,0.00043478,12]
[404163731,1769890240231,-500.0,0.00043478,12]
[404163732,1769890240242,-245.73568533,0.00043478,12]
[404163733,1769890240252,-500.0,0.00043478,8]
[404163735,1769890240262,-500.0,0.00043478,8]
[404163736,1769890240271,-500.0,0.00043478,8]
[404163738,1769890240281,-500.0,0.00043478,8]
[404163739,1769890240291,-500.0,0.00043478,8]
[404163740,1769890240300,-500.0,0.00043478,8]
[404163741,1769890240309,-500.0,0.00043478,8]
[404163742,1769890240319,-500.0,0.00043478,8]
[404163743,1769890240328,-327.6845381,0.00043478,8]
[404163744,1769890240337,-250.0,0.00043478,10]
[404163745,1769890240346,-250.0,0.00043478,10]
[404163747,1769890240355,-450.956387,0.00043478,10]
[404163749,1769890240364,-838.85,0.00043478,14]
[404163751,1769890240373,-838.85,0.00043478,14]
[404163753,1769890240383,-838.85,0.00043478,14]
[404163755,1769890240392,-838.85,0.00043478,14]
[404163757,1769890240401,-838.85,0.00043478,14]
[404163758,1769890240411,-838.85,0.00043478,14]
[404163759,1769890240421,-838.85,0.00043478,14]
[404163760,1769890240431,-838.85,0.00043478,14]
[404163761,1769890240440,-838.85,0.00043478,14]
[404163762,1769890240450,-838.85,0.00043478,14]
[404163763,1769890240460,-838.85,0.00043478,14]
[404163764,1769890240469,-838.85,0.00043478,14]
[404163765,1769890240479,-838.85,0.00043478,14]
[404163766,1769890240489,-838.85,0.00043478,14]
[404163767,1769890240499,-838.85,0.00043478,14]
[404163768,1769890240508,-838.85,0.00043478,14]
[404163769,1769890240517,-838.85,0.00043478,14]
[404163770,1769890240527,-838.85,0.00043478,14]
[404163771,1769890240536,-838.85,0.00043478,14]
[404163773,1769890240545,-838.85,0.00043478,14]
[404163775,1769890240555,-838.85,0.00043478,14]
[404163776,1769890240565,-838.85,0.00043478,14]
[404163778,1769890240575,-838.85,0.00043478,14]
[404163780,1769890240583,-838.90862427,0.00043478,14]
[404163782,1769890240593,-500.72471402,0.00043478,12]
[404163783,1769890240602,-2000.0,0.00043478,20]
[404163785,1769890240612,-1000.0,0.00043706,60]
[404163786,1769890240621,-1000.0,0.00043706,60]
[404163787,1769890240631,-1000.0,0.00043706,60]
[404163788,1769890240641,-715.0,0.00043706,60]
[404163789,1769890240650,-1450.0,0.0004426,20]
[404163790,1769890240660,-194.72792766,0.00044267,119]
[404163791,1769890240670,-652.86098973,0.00044268,20]
[404163792,1769890240679,-621.64304949,0.00044268,20]
[404163793,1769890240688,-620.08215247,0.00044268,20]
[404163794,1769890240698,-1000.0,0.00048076,120]
[404163795,1769890240707,-1000.0,0.00048076,120]
[404163796,1769890240717,-1000.0,0.00048076,120]
[404163797,1769890240726,-157.0,0.0005,120]
[404163798,1769890240736,-157.0,0.000527,120]
[404163799,1769890240745,-187.78006525,0.00055351,30]
[404163800,1769890240755,-157.0,0.000554,120]
[404163801,1769890240764,-157.0,0.000581,120]
[404163802,1769890240773,-181.08010149,0.00058197,120]
[404163803,1769890240782,-851.39,0.00058198,120]
[404163804,1769890240791,-150.0,0.00058198,120]
[404163805,1769890240800,-177.0,0.00060198,120]
[404163806,1769890240813,-157.0,0.000608,120]
[404163807,1769890240823,-204.0,0.00062198,120]
[404163809,1769890240832,-157.0,0.000635,120]
[404163810,1769890240841,-231.0,0.00064198,120]
[404163812,1769890240850,-258.0,0.00066198,120]
[404163814,1769890240859,-157.0,0.000662,120]
[404163815,1769890240868,-157.0,0.000689,120]
[404163817,1769890240878,-157.0,0.000716,120]
[404163819,1769890240887,-173.571,0.0007315,120]
[404163821,1769890240897,-157.0,0.000743,120]
[404163823,1769890240906,-174.61919141,0.00074473,30]
[404163825,1769890240916,-161.0,0.00077,120]
[404163827,1769890240925,-185.0,0.0008,120]
[404163829,1769890240935,-323.82325691,0.0008449,9]
[404163831,1769890240943,-1000.0,0.000845,120]
[404163833,1769890240953,-971.46977073,0.0008499,9]
[404163835,1769890240962,-174362.17427127,0.00085,120]
[404163837,1769890240972,-996.66,0.00085,30]
[404163839,1769890240981,-1020.4466765,0.00085044,120]
[404163841,1769890240991,-173.571,0.0011,120]
[404163843,1769890241000,-1619.11628455,0.0012499,22]
[404163845,1769890241010,-200000.0,0.00125,120]
[404163847,1769890241019,-151.0,0.00273973,120]
[404163849,1769890241027,-151.0,0.00273973,120]
[404163851,1769890241037,-151.0,0.00273973,120]
[404163853,1769890241046,-151.0,0.00273973,120]
[404163855,1769890241055,-151.0,0.00273973,120]
[404163857,1769890241069,-154.302974,0.00273973,120]
[404163859,1769890241079,-151.0,0.00273973,120]
[404163861,1769890241088,-151.0,0.00273973,120]
[404163863,1769890241098,-151.0,0.00273973,120]
[404163865,1769890241108,-151.0,0.00273973,120]
[404163868,1769890241119,-151.0,0.00273973,120]
[404163869,1769890241131,-151.0,0.00273973,120]
[404163871,1769890241140,-151.0,0.00273973,120]
[404163873,1769890241151,-151.0,0.00273973,120]
[404163875,1769890241160,-151.0,0.00273973,120]
[404163877,1769890241170,-151.0,0.00273973,120]
[404163879,1769890241179,-151.0,0.00273973,120]
[404163881,1769890241188,-151.0,0.00273973,120]
[404163883,1769890241197,-151.0,0.00273973,120]
[404163886,1769890241207,-152.462528,0.00273973,120]
[404163887,1769890241216,-151.0,0.00273973,120]
[404163889,1769890241225,-151.0,0.00273973,120]
[404163891,1769890241234,-154.309689,0.00273973,120]
[404163893,1769890241243,-151.0,0.00273973,120]
[404163895,1769890241253,-151.0,0.00273973,120]
[404163897,1769890241262,-151.0,0.00273973,120]
[404163899,1769890241272,-151.0,0.00273973,120]
[404163901,1769890241281,-151.0,0.00273973,120]
[404163904,1769890241290,-151.0,0.00273973,120]
[404163905,1769890241299,-151.0,0.00273973,120]
[404163907,1769890241308,-151.0,0.00273973,120]
[404163909,1769890241319,-211.1288,0.00273973,120]
[404163911,1769890241328,-151.0,0.00273973,120]
[404163914,1769890241337,-151.0,0.00273973,120]
[404163915,1769890241347,-236.467907,0.00273973,120]
[404163918,1769890241356,-168.3888056,0.00287999,90]
[404163920,1769890241366,-162.380719,0.00334879,73]
[404163922,1769890241375,-502.234,0.00352431,120]
[404163924,1769890241384,-716.0,0.00352431,2]
[404163926,1769890241393,-182.056,0.00352431,120]
[404163928,1769890241402,-150.0,0.00354417,120]
[404163929,1769890241411,-150.0,0.00354417,120]
[404163931,1769890241421,-418.0,0.00355431,120]
[404163934,1769890241431,-716.0,0.00355431,2]
[404163936,1769890241440,-179.0,0.00355431,120]
[404163938,1769890241449,-150.0,0.00357417,120]
[404163940,1769890241458,-418.0,0.00358431,120]
[404163941,1769890241466,-716.0,0.00358431,2]
[404163943,1769890241475,-179.0,0.00358431,120]
[404163946,1769890241484,-150.0,0.00360417,120]
[404163947,1769890241494,-418.0,0.00361431,120]
[404163949,1769890241503,-716.0,0.00361431,2]
[404163951,1769890241512,-179.0,0.00361431,120]
[404163953,1769890241521,-150.0,0.00363417,120]
[404163955,1769890241530,-418.0,0.00364431,120]
[404163957,1769890241539,-716.0,0.00364431,2]
[404163959,1769890241548,-179.0,0.00364431,120]
[404163961,1769890241559,-418.0,0.00367431,120]
[404163963,1769890241569,-716.0,0.00367431,2]
[404163965,1769890241579,-179.0,0.00367431,120]
[404163967,1769890241588,-418.0,0.00370431,120]
[404163969,1769890241597,-716.0,0.00370431,2]
[404163971,1769890241607,-179.0,0.00370431,120]
[404163973,1769890241617,-418.0,0.00373431,120]
[404163975,1769890241626,-539.153,0.00373431,2]
[404163977,1769890241636,-179.0,0.00373431,120]
[404163979,1769890241646,-418.0,0.00376431,120]
[404163981,1769890241655,-179.0,0.00376431,120]
[404163984,1769890241665,-418.0,0.00379431,120]
[404163986,1769890241674,-179.0,0.00379431,120]
[404163987,1769890241684,-418.0,0.00382431,120]
[404163989,1769890241693,-179.0,0.00382431,120]
[404163991,1769890241702,-418.0,0.00385431,120]
[404163993,1769890241711,-179.0,0.00385431,120]
[404163995,1769890241722,-179.0,0.00388431,120]
[404163997,1769890241731,-156.587,0.00397909,118]
[404163998,1769890241740,-919.421,0.00427669,120]
[404164000,1769890241749,-475.0,0.00427799,120]
[404164001,1769890241758,-475.0,0.00427799,120]
[404164003,1769890241767,-164.028,0.00427799,120]
[404164005,1769890241777,-151.0,0.00429999,119]
[404164006,1769890241787,-735.43920286,0.00511747,120]
[404164008,1769890241796,-10000.0,0.00654015,120]
[404164010,1769890241805,-20000.0,0.00658,120]
[404164012,1769890241816,-10000.0,0.007388,120]
[404164013,1769890241825,-1639.1145379,0.007488,120]
[404164015,1769890241839,-1073.8450359,0.007488,120]
[404164018,1769890241851,-7287.0404262,0.007488,120]
[404164020,1769890241860,-1619.11628455,0.0074999,120]
[404164021,1769890241870,-206484.56545623,0.0075,120]
[404164022,1769890241880,-182.52,0.0075,120]
[404164023,1769890241890,-10000.0,0.0075,120]
[404164024,1769890241899,-1000.0,0.0079,120]
[404164025,1769890241908,-6382.43383,0.007934,79]
[404164026,1769890241917,-10000.0,0.00795709,120]
[404164027,1769890241927,-1427.13190439,0.00822239,94]
[404164028,1769890241936,-1427.13190439,0.00822239,94]
[404164029,1769890241946,-1835.62009561,0.00822239,94]
[404164030,1769890241956,-1835.62009561,0.00822239,94]
[404164031,1769890241965,-152.0,0.0083,120]
[404164032,1769890241975,-152.0,0.0093,120]
[404164033,1769890241984,-10000.0,0.00968102,120]
[404164034,1769890241994,-735.43920286,0.01007798,120]
[404164035,1769890242003,-151.0,0.010354,85]
[404164036,1769890242012,-10000.0,0.01177844,120]
[404164037,1769890242022,-3861.27291463,0.0126,120]
[404164038,1769890242033,-323.82325691,0.0127299,120]
[404164039,1769890242043,-13340.51,0.01273,116]
[404164040,1769890242054,-13340.51,0.01273,116]
[404164041,1769890242065,-151.0,0.012795,104]
[404164042,1769890242075,-255.86789278,0.01295,120]
[404164043,1769890242088,-6622.39058,0.01361,65]
[404164044,1769890242099,-255.86789278,0.01378833,120]
[404164045,1769890242107,-6027.0,0.0142286,106]
[404164046,1769890242117,-6027.0,0.0142286,106]
[404164047,1769890242128,-10000.0,0.01433028,120]
[404164048,1769890242137,-323.82325691,0.01488066,120]
[404164049,1769890242146,-8856.79407077,0.01488076,77]
[404164050,1769890242155,-8856.79407077,0.01488076,77]
[404164051,1769890242165,-735.43920286,0.01503849,120]
[404164052,1769890242174,-255.86789278,0.01518556,120]
[404164053,1769890242184,-151.0,0.015236,90]
[404164054,1769890242193,-255.86789278,0.015465,120]
[404164055,1769890242202,-255.86789278,0.01602389,120]
[404164056,1769890242211,-255.86789278,0.01630333,120]
[404164057,1769890242221,-255.86789278,0.01742111,120]
[404164058,1769890242232,-10000.0,0.01743498,120]
[404164059,1769890242251,-151.0,0.017633,118]
[404164060,1769890242263,-151.0,0.017677,86]
[404164061,1769890242272,-255.86789278,0.01770056,120]
[404164062,1769890242281,-200.0,0.01815415,120]
[404164063,1769890242291,-960.50098701,0.0185,120]
[404164064,1769890242411,-3035.71,0.018997,80]
[404164065,1769890242423,-971.46977073,0.0189999,120]
[404164066,1769890242431,-260000.0,0.019,120]
[404164067,1769890242440,-1427528.13787644,0.019,120]
[404164068,1769890242513,-413.50734241,0.00273873,120]
[404164069,1769890243234,9000.0,0.00043478,20]
[404164076,1769890244965,-302.529,0.00491289,120]
[404164078,1769890244976,-116.28963761,0.0068783,120]
[404164080,1769890244990,-297.21770479,0.0068783,120]
[404164096,1769890246738,-413.5073424,0.01101787,120]
[404164097,1769890246751,-413.5073424,0.01515743,120]
[404164098,1769890246760,-951.38,0.0188999,120]